[Event "Titled Tuesday Blitz August 08 Early 2023"]
[White "Hoffmann, Asa"]
[Black "Kuchava, Ana"]
[WhiteFideId "2001470"]
[BlackFideId "13605348"]
[WhiteElo "2352"]
[BlackElo "2165"]
[Result "1-0"]
[Round "7"]
[TimeControl "180+1"]
[Date "2023.08.08"]
[WhiteClock "0:00:37"]
[BlackClock "0:00:00"]
[Board "191"]

1. d4 {[%clk 0:02:58]}  d5 {[%clk 0:02:53]} 2. Bg5 {[%clk 0:02:56]}  Nf6 {[%clk 0:02:51]} 3. Nd2 {[%clk 0:02:55]}  Bf5 {[%clk 0:02:49]} 4. e3 {[%clk 0:02:55]}  e5 {[%clk 0:02:45]} 5. dxe5 {[%clk 0:02:50]}  h6 {[%clk 0:02:31]} 6. Bh4 {[%clk 0:02:42]}  g5 {[%clk 0:02:30]} 7. Bg3 {[%clk 0:02:42]}  Ne4 {[%clk 0:02:27]} 8. Nxe4 {[%clk 0:02:42]}  Bxe4 {[%clk 0:02:26]} 9. f3 {[%clk 0:02:38]}  Bg6 {[%clk 0:02:24]} 10. Bd3 {[%clk 0:02:38]}  Bxd3 {[%clk 0:02:23]} 11. Qxd3 {[%clk 0:02:38]}  Bg7 {[%clk 0:02:22]} 12. Ne2 {[%clk 0:02:36]}  c6 {[%clk 0:02:19]} 13. h4 {[%clk 0:02:34]}  Nd7 {[%clk 0:02:12]} 14. f4 {[%clk 0:02:32]}  Nc5 {[%clk 0:02:08]} 15. Qd1 {[%clk 0:02:12]}  Ne4 {[%clk 0:02:07]} 16. c3 {[%clk 0:02:05]}  Qb6 {[%clk 0:01:38]} 17. Qc1 {[%clk 0:01:41]}  O-O-O {[%clk 0:01:26]} 18. a4 {[%clk 0:01:22]}  a5 {[%clk 0:01:20]} 19. Bf2 {[%clk 0:01:09]}  gxf4 {[%clk 0:00:50]} 20. Nxf4 {[%clk 0:01:07]}  Bxe5 {[%clk 0:00:48]} 21. O-O {[%clk 0:01:01]}  Rhg8 {[%clk 0:00:38]} 22. Qd1 {[%clk 0:00:56]}  Nxf2 {[%clk 0:00:26]} 23. Rxf2 {[%clk 0:00:55]}  Qxe3 {[%clk 0:00:25]} 24. Qf3 {[%clk 0:00:51]}  Bxf4 {[%clk 0:00:16]} 25. Qxf4 {[%clk 0:00:50]}  Qxf4 {[%clk 0:00:10]} 26. Rxf4 {[%clk 0:00:50]}  Rg7 {[%clk 0:00:09]} 27. Raf1 {[%clk 0:00:50]}  Rdg8 {[%clk 0:00:09]} 28. R1f2 {[%clk 0:00:49]}  Rg4 {[%clk 0:00:06]} 29. Kh2 {[%clk 0:00:47]}  Rxf4 {[%clk 0:00:04]} 30. Rxf4 {[%clk 0:00:46]}  Rg7 {[%clk 0:00:05]} 31. Kh3 {[%clk 0:00:44]}  h5 {[%clk 0:00:03]} 32. Rf5 {[%clk 0:00:40]}  Rg4 {[%clk 0:00:01]} 33. Rxh5 {[%clk 0:00:38]}  Rxa4 {[%clk 0:00:01]} 34. Rf5 {[%clk 0:00:38]}  Kd7 {[%clk 0:00:01]} 35. h5 {[%clk 0:00:38]}  Ke6 {[%clk 0:00:02]} 36. g4 {[%clk 0:00:38]}  Ra1 {[%clk 0:00:02]} 37. Kg2 {[%clk 0:00:37]}  Rb1 {[%clk 0:00:02]} 38. h6 {[%clk 0:00:37]}  Rxb2+ {[%clk 0:00:02]} 39. Kg3 {[%clk 0:00:37]}  Rb1 {[%clk 0:00:00]} 40. Rh5 {[%clk 0:00:37]} 1-0


[Site "https://www.chess.com"]

[Event "Titled Tuesday Blitz August 08 Early 2023"]
[White "Villuendas Valero, Adrian"]
[Black "Ibadov, Dashgyn"]
[WhiteFideId "2262460"]
[BlackFideId "24107514"]
[WhiteElo "2317"]
[BlackElo "2518"]
[Result "0-1"]
[Round "7"]
[TimeControl "180+1"]
[Date "2023.08.08"]
[WhiteClock "0:01:41"]
[BlackClock "0:00:38"]
[Board "196"]

1. e4 {[%clk 0:02:57]}  e5 {[%clk 0:03:00]} 2. Nf3 {[%clk 0:02:57]}  Nc6 {[%clk 0:03:00]} 3. Bb5 {[%clk 0:02:57]}  a6 {[%clk 0:03:00]} 4. Bxc6 {[%clk 0:02:57]}  dxc6 {[%clk 0:03:01]} 5. d4 {[%clk 0:02:58]}  exd4 {[%clk 0:03:01]} 6. Qxd4 {[%clk 0:02:59]}  Qxd4 {[%clk 0:03:00]} 7. Nxd4 {[%clk 0:03:00]}  c5 {[%clk 0:02:59]} 8. Nb3 {[%clk 0:03:00]}  Bd7 {[%clk 0:02:53]} 9. Be3 {[%clk 0:02:59]}  b6 {[%clk 0:02:53]} 10. Nc3 {[%clk 0:02:59]}  Nf6 {[%clk 0:02:53]} 11. f3 {[%clk 0:02:59]}  Bd6 {[%clk 0:02:51]} 12. O-O-O {[%clk 0:02:58]}  O-O-O {[%clk 0:02:51]} 13. Nd5 {[%clk 0:02:52]}  Nxd5 {[%clk 0:02:50]} 14. Rxd5 {[%clk 0:02:52]}  Be6 {[%clk 0:02:40]} 15. Rdd1 {[%clk 0:02:50]}  f5 {[%clk 0:02:40]} 16. Nd2 {[%clk 0:02:49]}  Rde8 {[%clk 0:02:33]} 17. Rhe1 {[%clk 0:02:48]}  Bxh2 {[%clk 0:02:30]} 18. Nf1 {[%clk 0:02:38]}  Bd6 {[%clk 0:02:27]} 19. a4 {[%clk 0:02:34]}  fxe4 {[%clk 0:02:24]} 20. fxe4 {[%clk 0:02:31]}  a5 {[%clk 0:02:18]} 21. Bf2 {[%clk 0:02:26]}  Rhf8 {[%clk 0:02:10]} 22. e5 {[%clk 0:02:22]}  Bxe5 {[%clk 0:01:43]} 23. Bxc5 {[%clk 0:02:18]}  Rxf1 {[%clk 0:01:30]} 24. Rxf1 {[%clk 0:02:09]}  bxc5 {[%clk 0:01:30]} 25. Rde1 {[%clk 0:02:07]}  Bf6 {[%clk 0:01:29]} 26. Re4 {[%clk 0:02:03]}  Bf7 {[%clk 0:01:24]} 27. Rfe1 {[%clk 0:02:03]}  Rxe4 {[%clk 0:01:24]} 28. Rxe4 {[%clk 0:02:03]}  Kd7 {[%clk 0:01:25]} 29. c3 {[%clk 0:02:04]}  Bd5 {[%clk 0:01:24]} 30. Re2 {[%clk 0:02:02]}  Bc6 {[%clk 0:01:16]} 31. b3 {[%clk 0:02:01]}  c4 {[%clk 0:01:17]} 32. Kb2 {[%clk 0:02:00]}  h5 {[%clk 0:01:10]} 33. b4 {[%clk 0:01:56]}  axb4 {[%clk 0:01:07]} 34. a5 {[%clk 0:01:56]}  Bxc3+ {[%clk 0:01:06]} 35. Kb1 {[%clk 0:01:57]}  b3 {[%clk 0:00:58]} 36. a6 {[%clk 0:01:53]}  Ba5 {[%clk 0:00:46]} 37. Re5 {[%clk 0:01:48]}  Bb6 {[%clk 0:00:44]} 38. Rxh5 {[%clk 0:01:47]}  Be4+ {[%clk 0:00:38]} 39. Kb2 {[%clk 0:01:46]}  Bd4+ {[%clk 0:00:38]} 40. Ka3 {[%clk 0:01:46]}  b2 {[%clk 0:00:39]} 41. Rd5+ {[%clk 0:01:42]}  Bxd5 {[%clk 0:00:38]} 42. a7 {[%clk 0:01:42]}  b1=Q {[%clk 0:00:37]} 43. a8=Q {[%clk 0:01:41]}  Qb3# {[%clk 0:00:38]} 0-1


[Site "https://www.chess.com"]

[Event "Titled Tuesday Blitz August 08 Early 2023"]
[White "Goswami, Vedant"]
[Black "Nguyen Hong Nhung"]
[WhiteFideId "5003725"]
[BlackFideId "12412201"]
[WhiteElo "2293"]
[BlackElo "2441"]
[Result "0-1"]
[Round "7"]
[TimeControl "180+1"]
[Date "2023.08.08"]
[WhiteClock "0:00:02"]
[BlackClock "0:00:12"]
[Board "197"]

1. a3 {[%clk 0:03:00]}  d5 {[%clk 0:02:56]} 2. e4 {[%clk 0:02:55]}  dxe4 {[%clk 0:02:55]} 3. Nc3 {[%clk 0:02:55]}  Bf5 {[%clk 0:02:49]} 4. f3 {[%clk 0:02:54]}  exf3 {[%clk 0:02:34]} 5. Qxf3 {[%clk 0:02:53]}  Bc8 {[%clk 0:02:34]} 6. Bc4 {[%clk 0:02:51]}  Nf6 {[%clk 0:02:33]} 7. Nge2 {[%clk 0:02:49]}  e6 {[%clk 0:02:33]} 8. d4 {[%clk 0:02:42]}  Nc6 {[%clk 0:02:30]} 9. Be3 {[%clk 0:02:39]}  Be7 {[%clk 0:02:21]} 10. g4 {[%clk 0:02:38]}  O-O {[%clk 0:02:08]} 11. O-O-O {[%clk 0:02:38]}  e5 {[%clk 0:02:00]} 12. h3 {[%clk 0:02:25]}  exd4 {[%clk 0:01:49]} 13. Nxd4 {[%clk 0:02:24]}  Ne5 {[%clk 0:01:47]} 14. Qe2 {[%clk 0:02:15]}  Nxc4 {[%clk 0:01:46]} 15. Qxc4 {[%clk 0:02:16]}  Bd6 {[%clk 0:01:21]} 16. Ndb5 {[%clk 0:02:08]}  Qe7 {[%clk 0:01:18]} 17. Rhe1 {[%clk 0:02:01]}  Be6 {[%clk 0:01:18]} 18. Qd4 {[%clk 0:01:44]}  Rfd8 {[%clk 0:01:13]} 19. Nxd6 {[%clk 0:01:27]}  Rxd6 {[%clk 0:01:14]} 20. Qf4 {[%clk 0:01:25]}  Rad8 {[%clk 0:01:03]} 21. Rxd6 {[%clk 0:01:12]}  Qxd6 {[%clk 0:01:04]} 22. Qxd6 {[%clk 0:01:11]}  Rxd6 {[%clk 0:01:05]} 23. Bf4 {[%clk 0:01:08]}  Rd7 {[%clk 0:01:02]} 24. Nb5 {[%clk 0:01:02]}  Nd5 {[%clk 0:00:57]} 25. Bg3 {[%clk 0:01:01]}  h5 {[%clk 0:00:45]} 26. gxh5 {[%clk 0:00:57]}  Bxh3 {[%clk 0:00:44]} 27. Nxa7 {[%clk 0:00:55]}  c6 {[%clk 0:00:40]} 28. Nc8 {[%clk 0:00:52]}  Bg4 {[%clk 0:00:35]} 29. c4 {[%clk 0:00:43]}  Nf6 {[%clk 0:00:24]} 30. h6 {[%clk 0:00:42]}  gxh6 {[%clk 0:00:20]} 31. Bh4 {[%clk 0:00:38]}  Kg7 {[%clk 0:00:17]} 32. Rf1 {[%clk 0:00:32]}  Ne4 {[%clk 0:00:16]} 33. Nb6 {[%clk 0:00:25]}  Rd3 {[%clk 0:00:14]} 34. Be1 {[%clk 0:00:18]}  f5 {[%clk 0:00:14]} 35. Nc8 {[%clk 0:00:12]}  Rd1+ {[%clk 0:00:13]} 36. Kc2 {[%clk 0:00:11]}  Nd2 {[%clk 0:00:11]} 37. Rg1 {[%clk 0:00:10]}  Nf3 {[%clk 0:00:11]} 38. Bc3+ {[%clk 0:00:09]}  Nd4+ {[%clk 0:00:09]} 39. Bxd4+ {[%clk 0:00:08]}  Rxd4 {[%clk 0:00:10]} 40. Ne7 {[%clk 0:00:08]}  Kf6 {[%clk 0:00:09]} 41. Ng8+ {[%clk 0:00:08]}  Kg5 {[%clk 0:00:09]} 42. Kc3 {[%clk 0:00:08]}  Rf4 {[%clk 0:00:09]} 43. Ne7 {[%clk 0:00:08]}  Rf3+ {[%clk 0:00:09]} 44. Kb4 {[%clk 0:00:08]}  h5 {[%clk 0:00:10]} 45. Kc5 {[%clk 0:00:07]}  h4 {[%clk 0:00:09]} 46. a4 {[%clk 0:00:08]}  h3 {[%clk 0:00:09]} 47. a5 {[%clk 0:00:08]}  Rb3 {[%clk 0:00:10]} 48. Nxc6 {[%clk 0:00:07]}  bxc6 {[%clk 0:00:08]} 49. a6 {[%clk 0:00:07]}  Rxb2 {[%clk 0:00:08]} 50. Ra1 {[%clk 0:00:06]}  Rb8 {[%clk 0:00:08]} 51. a7 {[%clk 0:00:06]}  Ra8 {[%clk 0:00:09]} 52. Kxc6 {[%clk 0:00:07]}  h2 {[%clk 0:00:09]} 53. Kb6 {[%clk 0:00:06]}  Bf3 {[%clk 0:00:09]} 54. c5 {[%clk 0:00:07]}  h1=Q {[%clk 0:00:09]} 55. Rxh1 {[%clk 0:00:06]}  Bxh1 {[%clk 0:00:10]} 56. c6 {[%clk 0:00:06]}  Bxc6 {[%clk 0:00:11]} 57. Kxc6 {[%clk 0:00:02]}  Rxa7 {[%clk 0:00:12]} 0-1


[Site "https://www.chess.com"]

[Event "Titled Tuesday Blitz August 08 Early 2023"]
[White "Smiechu"]
[Black "Kohler, Aran"]
[BlackFideId "1002856"]
[WhiteElo "2362"]
[BlackElo "2250"]
[Result "0-1"]
[Round "7"]
[TimeControl "180+1"]
[Date "2023.08.08"]
[WhiteClock "0:02:21"]
[BlackClock "0:02:02"]
[Board "199"]

1. e4 {[%clk 0:03:00]}  c6 {[%clk 0:03:00]} 2. d4 {[%clk 0:03:00]}  d5 {[%clk 0:03:00]} 3. f3 {[%clk 0:03:00]}  dxe4 {[%clk 0:02:59]} 4. fxe4 {[%clk 0:03:01]}  e5 {[%clk 0:02:57]} 5. Nf3 {[%clk 0:03:02]}  exd4 {[%clk 0:02:38]} 6. Bc4 {[%clk 0:03:01]}  Qe7 {[%clk 0:02:38]} 7. O-O {[%clk 0:03:00]}  h6 {[%clk 0:02:37]} 8. Qxd4 {[%clk 0:02:50]}  Be6 {[%clk 0:02:32]} 9. Nc3 {[%clk 0:02:44]}  Bxc4 {[%clk 0:02:22]} 10. Qxc4 {[%clk 0:02:44]}  Qc5+ {[%clk 0:02:22]} 11. Qxc5 {[%clk 0:02:44]}  Bxc5+ {[%clk 0:02:22]} 12. Kh1 {[%clk 0:02:45]}  Nd7 {[%clk 0:02:20]} 13. Bf4 {[%clk 0:02:41]}  Ngf6 {[%clk 0:02:16]} 14. Ne5 {[%clk 0:02:39]}  O-O {[%clk 0:02:05]} 15. Rad1 {[%clk 0:02:37]}  Nxe5 {[%clk 0:02:03]} 16. Bxe5 {[%clk 0:02:37]}  Ng4 {[%clk 0:02:04]} 17. Bg3 {[%clk 0:02:31]}  Ne3 {[%clk 0:02:03]} 18. Rfe1 {[%clk 0:02:23]}  Nxd1 {[%clk 0:02:02]} 19. Rxd1 {[%clk 0:02:21]}  Rad8 {[%clk 0:02:02]} 0-1


[Site "https://www.chess.com"]

[Event "Titled Tuesday Blitz August 08 Early 2023"]
[White "Rodriguez Santiago, Jaime"]
[Black "Lisjak, Zlatko"]
[WhiteFideId "3100898"]
[BlackFideId "14502186"]
[WhiteElo "2320"]
[BlackElo "2182"]
[Result "0-1"]
[Round "7"]
[TimeControl "180+1"]
[Date "2023.08.08"]
[WhiteClock "0:00:25"]
[BlackClock "0:00:39"]
[Board "201"]

1. c4 {[%clk 0:03:00]}  e5 {[%clk 0:02:58]} 2. Nc3 {[%clk 0:02:59]}  f5 {[%clk 0:02:58]} 3. g3 {[%clk 0:02:59]}  d6 {[%clk 0:02:55]} 4. Bg2 {[%clk 0:02:59]}  Nf6 {[%clk 0:02:55]} 5. e3 {[%clk 0:02:53]}  c6 {[%clk 0:02:51]} 6. Nge2 {[%clk 0:02:52]}  Be7 {[%clk 0:02:49]} 7. b3 {[%clk 0:02:51]}  O-O {[%clk 0:02:46]} 8. O-O {[%clk 0:02:50]}  d5 {[%clk 0:02:42]} 9. cxd5 {[%clk 0:02:47]}  cxd5 {[%clk 0:02:42]} 10. d4 {[%clk 0:02:47]}  e4 {[%clk 0:02:36]} 11. h4 {[%clk 0:02:41]}  Nh5 {[%clk 0:02:16]} 12. Bd2 {[%clk 0:02:16]}  Nc6 {[%clk 0:02:15]} 13. Nxd5 {[%clk 0:02:14]}  Qxd5 {[%clk 0:02:09]} 14. Nc3 {[%clk 0:02:14]}  Qf7 {[%clk 0:02:09]} 15. g4 {[%clk 0:01:57]}  fxg4 {[%clk 0:02:02]} 16. Bxe4 {[%clk 0:01:56]}  Kh8 {[%clk 0:01:50]} 17. Bd5 {[%clk 0:01:53]}  Qg6 {[%clk 0:01:43]} 18. Bg2 {[%clk 0:01:38]}  Bxh4 {[%clk 0:01:40]} 19. Nd5 {[%clk 0:01:37]}  Bf5 {[%clk 0:01:24]} 20. b4 {[%clk 0:01:29]}  Be4 {[%clk 0:01:22]} 21. b5 {[%clk 0:01:28]}  Ne7 {[%clk 0:01:22]} 22. Nxe7 {[%clk 0:01:14]}  Bxe7 {[%clk 0:01:19]} 23. Rc1 {[%clk 0:01:09]}  Rac8 {[%clk 0:01:10]} 24. Qb3 {[%clk 0:01:01]}  Bxg2 {[%clk 0:01:07]} 25. Kxg2 {[%clk 0:01:01]}  Qe4+ {[%clk 0:01:07]} 26. Kg1 {[%clk 0:01:00]}  Rxc1 {[%clk 0:01:04]} 27. Rxc1 {[%clk 0:00:58]}  Qf3 {[%clk 0:01:02]} 28. Be1 {[%clk 0:00:58]}  g3 {[%clk 0:01:00]} 29. Rc2 {[%clk 0:00:57]}  gxf2+ {[%clk 0:00:58]} 30. Rxf2 {[%clk 0:00:57]}  Qg3+ {[%clk 0:00:58]} 31. Kf1 {[%clk 0:00:57]}  Qh3+ {[%clk 0:00:53]} 32. Ke2 {[%clk 0:00:57]}  Ng3+ {[%clk 0:00:51]} 33. Kd1 {[%clk 0:00:57]}  Qg4+ {[%clk 0:00:50]} 34. Kc2 {[%clk 0:00:53]}  Rxf2+ {[%clk 0:00:48]} 35. Bxf2 {[%clk 0:00:53]}  Qe2+ {[%clk 0:00:48]} 36. Kb1 {[%clk 0:00:52]}  Qxf2 {[%clk 0:00:48]} 37. Qe6 {[%clk 0:00:52]}  Bf8 {[%clk 0:00:45]} 38. d5 {[%clk 0:00:52]}  Qf6 {[%clk 0:00:42]} 39. Qc8 {[%clk 0:00:44]}  h5 {[%clk 0:00:41]} 40. e4 {[%clk 0:00:42]}  h4 {[%clk 0:00:39]} 41. e5 {[%clk 0:00:40]}  Qf5+ {[%clk 0:00:39]} 42. Qxf5 {[%clk 0:00:30]}  Nxf5 {[%clk 0:00:40]} 43. Kc2 {[%clk 0:00:25]}  h3 {[%clk 0:00:39]} 0-1


[Site "https://www.chess.com"]

[Event "Titled Tuesday Blitz August 08 Early 2023"]
[White "Hrescak, Ivana"]
[Black "LLariMarc"]
[WhiteFideId "14613441"]
[WhiteElo "2203"]
[BlackElo "2307"]
[Result "1-0"]
[Round "7"]
[TimeControl "180+1"]
[Date "2023.08.08"]
[WhiteClock "0:00:12"]
[BlackClock "0:01:59"]
[Board "205"]

1. e4 {[%clk 0:03:00]}  e6 {[%clk 0:03:00]} 2. d4 {[%clk 0:03:00]}  d5 {[%clk 0:03:01]} 3. Nc3 {[%clk 0:03:00]}  Nf6 {[%clk 0:02:55]} 4. e5 {[%clk 0:03:01]}  Nfd7 {[%clk 0:02:55]} 5. f4 {[%clk 0:03:01]}  c5 {[%clk 0:02:55]} 6. Nf3 {[%clk 0:03:01]}  Nc6 {[%clk 0:02:54]} 7. Be3 {[%clk 0:03:01]}  a6 {[%clk 0:02:54]} 8. Ne2 {[%clk 0:03:01]}  b5 {[%clk 0:02:54]} 9. c3 {[%clk 0:02:57]}  Nb6 {[%clk 0:02:54]} 10. dxc5 {[%clk 0:02:54]}  Nc4 {[%clk 0:02:54]} 11. Bd4 {[%clk 0:02:43]}  Nxb2 {[%clk 0:02:55]} 12. Qc2 {[%clk 0:02:39]}  Na4 {[%clk 0:02:55]} 13. g3 {[%clk 0:02:24]}  Bxc5 {[%clk 0:02:56]} 14. Bg2 {[%clk 0:02:21]}  Nxd4 {[%clk 0:02:54]} 15. cxd4 {[%clk 0:02:19]}  Bb4+ {[%clk 0:02:55]} 16. Kf2 {[%clk 0:02:18]}  O-O {[%clk 0:02:56]} 17. Ng5 {[%clk 0:02:13]}  g6 {[%clk 0:02:54]} 18. h4 {[%clk 0:02:09]}  h5 {[%clk 0:02:53]} 19. Bf3 {[%clk 0:02:02]}  f5 {[%clk 0:02:46]} 20. exf6 {[%clk 0:01:58]}  Qxf6 {[%clk 0:02:46]} 21. Qc7 {[%clk 0:01:50]}  Qe7 {[%clk 0:02:43]} 22. Qc2 {[%clk 0:01:38]}  Qg7 {[%clk 0:02:40]} 23. Rac1 {[%clk 0:01:30]}  Bb7 {[%clk 0:02:37]} 24. Nxe6 {[%clk 0:01:27]}  Qf6 {[%clk 0:02:35]} 25. Nxf8 {[%clk 0:01:25]}  Rxf8 {[%clk 0:02:36]} 26. Qc7 {[%clk 0:01:20]}  Rf7 {[%clk 0:02:34]} 27. Qe5 {[%clk 0:01:18]}  Qxe5 {[%clk 0:02:32]} 28. dxe5 {[%clk 0:01:16]}  Nb6 {[%clk 0:02:32]} 29. Rhd1 {[%clk 0:01:03]}  Kg7 {[%clk 0:02:30]} 30. Nd4 {[%clk 0:01:01]}  Rd7 {[%clk 0:02:27]} 31. e6 {[%clk 0:00:45]}  Re7 {[%clk 0:02:25]} 32. Nc6 {[%clk 0:00:45]}  Bxc6 {[%clk 0:02:20]} 33. Rxc6 {[%clk 0:00:45]}  Nc4 {[%clk 0:02:19]} 34. Bxd5 {[%clk 0:00:38]}  Nd6 {[%clk 0:02:19]} 35. Bb3 {[%clk 0:00:33]}  Nf5 {[%clk 0:02:14]} 36. Rxa6 {[%clk 0:00:29]}  Bc5+ {[%clk 0:02:13]} 37. Kf3 {[%clk 0:00:22]}  Nd4+ {[%clk 0:02:12]} 38. Kg2 {[%clk 0:00:20]}  Kf6 {[%clk 0:02:12]} 39. Ra8 {[%clk 0:00:15]}  Kf5 {[%clk 0:02:11]} 40. Rf8+ {[%clk 0:00:13]}  Ke4 {[%clk 0:02:12]} 41. Rf7 {[%clk 0:00:14]}  Nf5 {[%clk 0:02:10]} 42. Rxe7 {[%clk 0:00:14]}  Bxe7 {[%clk 0:02:10]} 43. Rd7 {[%clk 0:00:13]}  Ne3+ {[%clk 0:02:01]} 44. Kf2 {[%clk 0:00:12]}  Ng4+ {[%clk 0:02:01]} 45. Ke2 {[%clk 0:00:12]}  Bc5 {[%clk 0:01:59]} 46. Bc2# {[%clk 0:00:12]} 1-0


[Site "https://www.chess.com"]

[Event "Titled Tuesday Blitz August 08 Early 2023"]
[White "Floresvillar Gonzalez, Luis Migu"]
[Black "Tqebuchava, Zurab"]
[WhiteFideId "5100542"]
[BlackFideId "13601113"]
[WhiteElo "2148"]
[BlackElo "2250"]
[Result "0-1"]
[Round "7"]
[TimeControl "180+1"]
[Date "2023.08.08"]
[WhiteClock "0:00:00"]
[BlackClock "0:00:03"]
[Board "210"]

1. d4 {[%clk 0:03:00]}  d6 {[%clk 0:03:00]} 2. c3 {[%clk 0:03:00]}  Nf6 {[%clk 0:03:00]} 3. Bf4 {[%clk 0:02:59]}  Nbd7 {[%clk 0:03:01]} 4. Nf3 {[%clk 0:02:59]}  g6 {[%clk 0:02:50]} 5. Qc1 {[%clk 0:02:54]}  c6 {[%clk 0:02:31]} 6. Bh6 {[%clk 0:02:51]}  Bxh6 {[%clk 0:02:12]} 7. Qxh6 {[%clk 0:02:49]}  Qb6 {[%clk 0:02:11]} 8. Qc1 {[%clk 0:02:49]}  O-O {[%clk 0:02:10]} 9. Nbd2 {[%clk 0:02:49]}  a5 {[%clk 0:02:08]} 10. Nc4 {[%clk 0:02:41]}  Qb5 {[%clk 0:02:02]} 11. e3 {[%clk 0:02:40]}  Qh5 {[%clk 0:01:30]} 12. Be2 {[%clk 0:02:39]}  Qh6 {[%clk 0:01:29]} 13. a4 {[%clk 0:02:17]}  b6 {[%clk 0:01:24]} 14. h3 {[%clk 0:02:15]}  Ba6 {[%clk 0:01:22]} 15. Qd2 {[%clk 0:02:06]}  Ne4 {[%clk 0:01:18]} 16. Qc2 {[%clk 0:01:55]}  d5 {[%clk 0:01:13]} 17. Ncd2 {[%clk 0:01:47]}  Bxe2 {[%clk 0:01:11]} 18. Kxe2 {[%clk 0:01:47]}  Ndf6 {[%clk 0:01:02]} 19. Nxe4 {[%clk 0:01:44]}  Nxe4 {[%clk 0:00:59]} 20. Ne5 {[%clk 0:01:01]}  Qh5+ {[%clk 0:00:42]} 21. g4 {[%clk 0:00:58]}  Qh4 {[%clk 0:00:41]} 22. Rh2 {[%clk 0:00:52]}  Rac8 {[%clk 0:00:37]} 23. Nd7 {[%clk 0:00:48]}  Rfd8 {[%clk 0:00:32]} 24. Ne5 {[%clk 0:00:41]}  c5 {[%clk 0:00:28]} 25. Nf3 {[%clk 0:00:40]}  Qf6 {[%clk 0:00:27]} 26. Rf1 {[%clk 0:00:36]}  cxd4 {[%clk 0:00:26]} 27. exd4 {[%clk 0:00:32]}  Qc6 {[%clk 0:00:25]} 28. Nd2 {[%clk 0:00:30]}  Nxd2 {[%clk 0:00:22]} 29. Kxd2 {[%clk 0:00:27]}  b5 {[%clk 0:00:21]} 30. axb5 {[%clk 0:00:26]}  Qxb5 {[%clk 0:00:21]} 31. Re1 {[%clk 0:00:23]}  e6 {[%clk 0:00:20]} 32. f4 {[%clk 0:00:20]}  Rb8 {[%clk 0:00:20]} 33. Rhe2 {[%clk 0:00:19]}  Qxb2 {[%clk 0:00:19]} 34. Qxb2 {[%clk 0:00:19]}  Rxb2+ {[%clk 0:00:19]} 35. Kd3 {[%clk 0:00:19]}  Rb3 {[%clk 0:00:18]} 36. Ra2 {[%clk 0:00:18]}  Rc8 {[%clk 0:00:17]} 37. Rc1 {[%clk 0:00:18]}  Ra8 {[%clk 0:00:16]} 38. Ra4 {[%clk 0:00:17]}  Rb2 {[%clk 0:00:15]} 39. Rc2 {[%clk 0:00:16]}  Rb1 {[%clk 0:00:15]} 40. c4 {[%clk 0:00:13]}  Rh1 {[%clk 0:00:11]} 41. cxd5 {[%clk 0:00:12]}  exd5 {[%clk 0:00:08]} 42. Rc5 {[%clk 0:00:10]}  Rxh3+ {[%clk 0:00:07]} 43. Ke2 {[%clk 0:00:10]}  Rg3 {[%clk 0:00:07]} 44. g5 {[%clk 0:00:09]}  Rg4 {[%clk 0:00:07]} 45. Kf3 {[%clk 0:00:09]}  Rg1 {[%clk 0:00:07]} 46. Rxd5 {[%clk 0:00:09]}  Rd1 {[%clk 0:00:07]} 47. Raxa5 {[%clk 0:00:08]}  Re8 {[%clk 0:00:06]} 48. Re5 {[%clk 0:00:06]}  Rc8 {[%clk 0:00:05]} 49. d5 {[%clk 0:00:05]}  Rd4 {[%clk 0:00:04]} 50. Re4 {[%clk 0:00:05]}  Rc3+ {[%clk 0:00:04]} 51. Re3 {[%clk 0:00:05]}  Rcc4 {[%clk 0:00:03]} 52. f5 {[%clk 0:00:04]}  Rf4+ {[%clk 0:00:04]} 53. Ke2 {[%clk 0:00:04]}  Rxf5 {[%clk 0:00:04]} 54. d6 {[%clk 0:00:00]}  Rd5 {[%clk 0:00:03]} 0-1


[Site "https://www.chess.com"]

[Event "Titled Tuesday Blitz August 08 Early 2023"]
[White "Schut, Han"]
[Black "Mangialardo, Tiago Carvalho"]
[WhiteFideId "1005561"]
[BlackFideId "2130718"]
[WhiteElo "2235"]
[BlackElo "2067"]
[Result "0-1"]
[Round "7"]
[TimeControl "180+1"]
[Date "2023.08.08"]
[WhiteClock "0:00:18"]
[BlackClock "0:00:04"]
[Board "212"]

1. e4 {[%clk 0:03:00]}  Nf6 {[%clk 0:02:57]} 2. e5 {[%clk 0:03:00]}  Nd5 {[%clk 0:02:57]} 3. d4 {[%clk 0:03:01]}  d6 {[%clk 0:02:57]} 4. Nf3 {[%clk 0:03:01]}  Nc6 {[%clk 0:02:52]} 5. exd6 {[%clk 0:02:55]}  exd6 {[%clk 0:02:52]} 6. c4 {[%clk 0:02:53]}  Nb6 {[%clk 0:02:40]} 7. b3 {[%clk 0:02:44]}  Be7 {[%clk 0:02:35]} 8. Be2 {[%clk 0:02:42]}  O-O {[%clk 0:02:27]} 9. O-O {[%clk 0:02:42]}  Bg4 {[%clk 0:02:27]} 10. Be3 {[%clk 0:02:36]}  Bf6 {[%clk 0:02:19]} 11. Qd2 {[%clk 0:02:32]}  Re8 {[%clk 0:02:04]} 12. Nc3 {[%clk 0:02:30]}  h6 {[%clk 0:01:44]} 13. Rfe1 {[%clk 0:02:12]}  d5 {[%clk 0:01:39]} 14. c5 {[%clk 0:02:11]}  Nc8 {[%clk 0:01:39]} 15. h3 {[%clk 0:02:08]}  Bh5 {[%clk 0:01:35]} 16. Ne5 {[%clk 0:01:58]}  Bxe2 {[%clk 0:00:30]} 17. Nxc6 {[%clk 0:01:57]}  bxc6 {[%clk 0:00:31]} 18. Rxe2 {[%clk 0:01:57]}  Ne7 {[%clk 0:00:28]} 19. Rae1 {[%clk 0:01:50]}  Nf5 {[%clk 0:00:27]} 20. Rd1 {[%clk 0:01:01]}  Qd7 {[%clk 0:00:21]} 21. Ree1 {[%clk 0:01:00]}  Re7 {[%clk 0:00:20]} 22. Ne2 {[%clk 0:00:58]}  Nxe3 {[%clk 0:00:18]} 23. fxe3 {[%clk 0:00:56]}  Bg5 {[%clk 0:00:18]} 24. Nf4 {[%clk 0:00:52]}  Rae8 {[%clk 0:00:17]} 25. Kf2 {[%clk 0:00:41]}  Qf5 {[%clk 0:00:17]} 26. g3 {[%clk 0:00:36]}  Bxf4 {[%clk 0:00:13]} 27. exf4 {[%clk 0:00:28]}  Qxh3 {[%clk 0:00:08]} 28. Kf3 {[%clk 0:00:28]}  Qh5+ {[%clk 0:00:05]} 29. Kf2 {[%clk 0:00:28]}  Qh2+ {[%clk 0:00:05]} 30. Kf3 {[%clk 0:00:18]}  Qxd2 {[%clk 0:00:04]} 0-1


[Site "https://www.chess.com"]